bitfinex/quotes_ETHUSD_20260305
["timestamp","ask_amount","ask_price","bid_price","bid_amount"]
[1772748759158,0.47505302,2079.7,2079.4,1.407]
[1772748759634,0.47505302,2079.7,2079.4,1.68500967]
[1772748759841,0.47505302,2079.7,2079.2,0.0011]
[1772748759842,0.47505302,2079.7,2079.3,1.407]
[1772748760428,1.67720728,2079.6,2079.3,1.407]
[1772748760659,0.47505302,2079.5,2079.3,1.407]
[1772748761072,0.47505302,2079.5,2079.2,0.0011]
[1772748762654,1.6773229,2079.4,2079.2,0.0011]
[1772748762871,0.47505302,2079.4,2079.2,0.0011]
[1772748763167,1.20224934,2079.5,2079.2,0.0011]
[1772748763168,1.67730236,2079.5,2079.2,0.0011]
[1772748763362,1.67730236,2079.5,2079.4,0.0011]
[1772748772289,0.5,2079.4,2079.0,0.0011]
[1772748773371,0.5,2079.4,2079.0,1.20359833]
[1772748773775,0.5,2079.3,2079.0,0.0011]
[1772748775751,1.7023277,2079.3,2079.2,0.0011]
[1772748780277,0.49945,2079.2,2079.0,0.0011]
[1772748781873,1.7017648,2079.4,2079.0,0.0022]
[1772748782073,1.7017648,2079.4,2079.1,0.0011]
[1772748782273,1.7017648,2079.4,2079.0,0.0011]
[1772748782472,1.7017648,2079.4,2079.0,0.0022]
[1772748783271,0.49945,2079.3,2079.0,0.0011]
[1772748785686,1.20238553,2079.2,2079.0,0.0011]
[1772748786284,1.70181894,2079.3,2079.0,0.0022]
[1772748786776,0.49945,2079.4,2079.1,0.0011]
[1772748786978,0.49945,2079.4,2079.0,0.0011]
[1772748787354,0.49945,2079.4,2079.2,0.0011]
[1772748787750,1.7017777,2079.3,2079.2,0.0011]
[1772748788482,0.4989,2079.2,2079.0,0.0011]
[1772748790303,0.4989,2079.2,2078.8,0.0011]
[1772748790304,0.4989,2079.0,2078.8,0.0011]
[1772748790592,0.4989,2079.0,2078.6,0.0011]
[1772748790799,0.4989,2078.8,2078.3,0.0011]
[1772748790955,0.4989,2078.8,2078.0,1.20637945]
[1772748791171,0.4989,2078.8,2078.2,0.0011]
[1772748791566,1.5160418,2078.6,2078.0,0.0011]
[1772748791806,0.4989,2078.4,2077.5,1.3791]
[1772748792103,0.4989,2078.2,2077.5,1.3813]
[1772748792303,0.4989,2078.0,2077.5,1.3813]
[1772748792667,0.4989,2078.0,2077.6,0.0022]
[1772748793698,0.4989,2078.0,2077.5,1.3791]
[1772748793903,0.4989,2078.0,2077.5,1.3813]
[1772748794270,0.4989,2077.9,2077.5,2.58246762]
[1772748794469,1.20312495,2078.0,2077.6,0.0022]
[1772748794470,1.70202495,2078.0,2077.6,0.0022]
[1772748794930,0.4989,2078.2,2077.6,0.0022]
[1772748795108,0.4989,2078.1,2077.6,0.0022]
[1772748797179,0.4989,2078.4,2077.6,0.0022]
[1772748799197,0.4989,2078.4,2077.9,0.0022]
[1772748800171,1.20285999,2078.4,2077.9,0.0022]
[1772748800470,0.4989,2078.3,2077.9,0.0022]
[1772748801107,1.20285437,2078.4,2077.9,0.0022]
[1772748801608,0.4989,2078.3,2077.9,0.0022]
[1772748805909,0.4989,2078.7,2077.9,0.0022]
[1772748809117,4.81046757,2079.0,2077.9,0.46309925]
[1772748809118,0.47090484,2078.8,2077.9,0.46309925]
[1772748810608,0.4736929,2079.0,2077.9,0.46309925]
[1772748811198,1.20252976,2079.0,2078.0,1.20307988]
[1772748811402,0.4736929,2078.9,2078.1,0.49866336]
[1772748811607,0.4736929,2078.9,2078.3,0.49866336]
[1772748811825,0.001,2078.6,2078.3,0.49866336]
[1772748812904,0.001,2078.6,2078.2,0.49866336]
[1772748813522,0.001,2078.6,2078.4,0.49866336]
[1772748815531,0.001,2078.6,2078.5,1.70145383]
[1772748815825,1.20347599,2079.1,2078.6,0.49866336]
[1772748815826,0.4736929,2079.0,2078.6,0.49866336]
[1772748816332,0.001,2079.1,2078.8,0.49866336]
[1772748818026,0.001,2079.1,2078.9,1.20255904]
[1772748818712,0.001,2079.1,2078.9,1.7012224]
[1772748821722,0.4736929,2079.0,2078.5,1.70145383]
[1772748822042,0.001,2079.1,2078.8,0.49866336]
[1772748823730,0.001,2078.9,2078.8,0.49866336]
[1772748828612,1.67713872,2079.1,2078.8,0.49866336]
[1772748835744,1.67713872,2079.1,2079.0,0.0011]
[1772748837038,0.4736929,2079.0,2078.8,1.3901]
[1772748841124,1.20344582,2079.1,2078.8,1.3901]
[1772748841125,0.50039186,2079.1,2078.8,1.3901]
[1772748841320,0.50039186,2079.1,2078.8,3.05284065]
[1772748842143,0.50039186,2079.1,2078.8,1.85022417]
[1772748843052,0.49939186,2079.0,2078.8,0.0011]
[1772748845847,1.70189478,2079.0,2078.8,0.0011]
[1772748846462,0.49939186,2079.4,2078.8,0.46122417]
[1772748846633,1.20325393,2079.5,2078.8,0.46122417]
[1772748846634,1.20321227,2079.5,2078.8,0.46122417]
[1772748846834,1.70260413,2079.5,2078.8,0.46122417]
[1772748847150,0.001,2079.5,2079.0,0.46012417]
[1772748847485,0.001,2079.5,2079.2,0.46012417]
[1772748849244,0.001,2079.5,2079.4,0.46012417]
[1772748849671,1.70137633,2079.9,2079.4,0.46012417]
[1772748850361,0.49939186,2079.8,2079.4,0.46012417]
[1772748852264,0.49939186,2079.8,2079.4,1.66236529]
[1772748852758,0.49939186,2079.8,2079.4,1.20224112]
[1772748852964,0.49939186,2079.8,2079.5,0.46012417]
[1772748853159,0.49939186,2079.8,2079.6,1.398]
[1772748854267,1.70143178,2079.8,2079.6,1.398]
[1772748854452,0.49939186,2079.7,2079.6,1.398]
[1772748855567,0.49939186,2079.7,2079.0,0.46122417]
[1772748855866,0.49939186,2079.7,2079.0,1.66372318]
[1772748856560,1.20215426,2079.6,2079.1,1.399]
[1772748856755,0.49939186,2079.5,2079.1,1.399]
[1772748857845,0.49939186,2079.5,2079.0,0.0011]
[1772748858839,0.49939186,2079.3,2079.0,0.0011]
[1772748860440,0.50039186,2079.3,2079.0,0.0011]
[1772748861043,0.49939186,2079.1,2079.0,0.0011]
[1772748861369,0.49939186,2079.2,2079.0,0.0011]
[1772748863053,1.70183522,2079.1,2079.0,0.0011]
[1772748870492,0.46083365,2079.0,2078.8,0.0011]
[1772748872187,1.66338935,2079.0,2078.8,0.0011]
[1772748888187,0.001,2079.3,2078.9,0.468428]
[1772748888905,0.46183365,2079.3,2078.9,0.468428]
[1772748889416,1.66290436,2079.8,2079.2,0.468428]
[1772748889583,0.46083365,2079.7,2079.2,0.468428]
[1772748890200,0.46083365,2079.7,2079.3,1.2023277]
[1772748890515,1.6625976,2080.3,2079.4,0.468428]
[1772748890710,0.46083365,2080.2,2079.4,0.468428]
[1772748892209,0.46083365,2080.2,2079.6,0.468428]
[1772748892416,0.46083365,2080.2,2079.8,0.468428]
[1772748892707,1.66264668,2080.2,2079.8,0.468428]
[1772748892912,0.46083365,2080.1,2079.8,0.468428]
[1772748894480,1.6626142,2080.3,2079.8,0.468428]
[1772748896688,0.46083365,2080.2,2079.8,0.468428]
[1772748897292,0.001,2080.0,2079.8,0.468428]
[1772748900705,0.49897264,2080.4,2079.9,0.47653993]
[1772748900907,0.49997264,2080.6,2079.9,0.47653993]
[1772748901102,1.70154916,2080.6,2079.9,0.47653993]
[1772748901303,1.70154916,2080.6,2080.1,0.47653993]
[1772748901504,0.49897264,2080.5,2079.9,0.47653993]
[1772748902029,0.49897264,2080.5,2079.7,0.47653993]
[1772748902326,0.49897264,2080.5,2079.8,1.386]
[1772748902631,0.49897264,2080.5,2079.8,1.86253993]
[1772748903297,0.49897264,2080.3,2079.8,1.86253993]
[1772748905230,1.20180751,2080.2,2079.9,0.47653993]
[1772748906134,1.70078015,2080.2,2079.9,0.47653993]
[1772748909643,0.001,2080.6,2080.0,0.0011]
[1772748909813,1.70139684,2080.9,2080.2,0.47653993]
[1772748910012,0.49897264,2080.8,2080.2,0.47653993]
[1772748910212,1.70046321,2080.8,2080.4,0.47653993]
[1772748910737,1.70046321,2080.8,2080.4,1.84853993]
[1772748911518,0.49897264,2080.8,2080.4,1.84853993]
[1772748911718,0.49997264,2080.9,2080.5,0.47653993]
[1772748911919,1.70138583,2080.9,2080.5,0.47653993]
[1772748912514,1.20241319,2080.9,2080.5,1.67817413]
[1772748913122,1.70138583,2080.9,2080.5,1.67817413]
[1772748914539,1.70138583,2080.9,2080.5,0.47653993]
[1772748915067,1.70138583,2080.9,2080.5,1.67817264]
[1772748917018,1.70138583,2080.9,2080.5,0.47653993]
[1772748918860,0.49997264,2080.9,2080.5,1.6781177]
[1772748919026,1.70138539,2080.9,2080.5,1.6781177]
[1772748919229,1.70138539,2080.9,2080.5,1.67816625]
[1772748919945,1.70138539,2080.9,2080.5,0.47653993]
[1772748921036,0.49897264,2080.8,2080.4,1.372]
[1772748921234,0.49897264,2080.6,2080.4,1.372]
[1772748921554,0.49897264,2080.6,2080.1,1.386]
[1772748922636,0.49897264,2080.6,2080.5,0.0011]
[1772748924046,0.49897264,2080.5,2080.2,0.0011]
[1772748926455,0.49897264,2080.3,2080.2,0.0011]
[1772748928374,1.70072238,2080.3,2080.2,0.0011]
[1772748929372,0.46765241,2080.2,2080.0,0.0011]
[1772748930563,1.20186529,2080.1,2080.0,0.0011]
[1772748932347,0.46217661,2080.3,2080.0,0.46868323]
[1772748932553,1.20169198,2080.4,2080.0,0.46868323]
[1772748932763,1.66386859,2080.4,2080.0,0.46868323]
[1772748933170,0.46217661,2080.3,2080.0,0.46868323]
[1772748935244,1.66392635,2080.3,2080.2,0.0011]
[1772748941476,1.53621245,2080.3,2080.2,0.0011]
[1772748942079,0.46217661,2080.2,2079.8,0.0011]
[1772748942542,0.46217661,2080.2,2079.8,0.36463067]
[1772748943742,1.20186529,2080.1,2079.8,0.36463067]
[1772748945252,1.6640419,2080.1,2079.8,0.36463067]
[1772748947483,1.6640419,2080.1,2080.0,0.0011]
[1772748947689,1.6650419,2080.1,2080.0,0.0011]
[1772748954262,4.80699899,2080.6,2080.0,0.0011]
[1772748954263,0.46217661,2080.5,2080.0,0.0011]
[1772748955558,0.46217661,2080.3,2080.0,0.0011]
[1772748957373,1.66398412,2080.2,2080.0,0.0011]
[1772748957577,0.46217661,2080.1,2080.0,0.0011]
[1772748957765,0.46217661,2080.0,2079.7,0.0011]
[1772748957964,0.46217661,2080.1,2079.7,0.0011]
[1772748958968,0.46217661,2079.9,2079.7,0.0011]
[1772748959168,0.17073409,2079.9,2079.7,0.0011]
[1772748959598,1.66421526,2079.8,2079.7,0.0011]
[1772748962270,1.20203865,2079.8,2079.6,0.0011]
[1772748962472,0.46523396,2079.7,2079.6,0.0033]
[1772748962983,0.46523396,2079.7,2079.6,0.0011]
[1772748963185,0.46523396,2079.7,2079.5,1e-08]
[1772748963996,0.46523396,2079.7,2079.1,0.0011]
[1772748963997,0.46523396,2079.5,2079.1,0.0011]
[1772748968319,0.46523396,2079.3,2079.1,0.0011]
[1772748970393,0.46523396,2079.3,2079.1,0.0033]
[1772748970716,1.66,2079.8,2079.1,0.0033]
[1772748970717,0.46523396,2079.9,2079.2,0.4930178]
[1772748970892,0.46523396,2079.9,2079.2,0.4952178]
[1772748973315,0.46523396,2079.7,2079.3,0.0011]
[1772748973505,0.46623396,2079.7,2079.3,0.0011]
[1772748975854,1.66738822,2079.6,2079.3,0.0033]
[1772748976750,1.20215426,2079.6,2079.3,0.0033]
[1772748976948,0.46523396,2079.5,2079.3,0.0033]
[1772748979479,1.66746321,2079.5,2079.3,0.0033]
[1772748980278,0.46523396,2079.5,2079.3,0.0033]
[1772748980772,1.667448,2079.5,2079.3,0.0033]
[1772748980945,1.667448,2079.5,2079.4,0.0022]
[1772748981150,0.46523396,2079.4,2079.1,0.0011]
[1772748981342,0.46523396,2079.4,2079.1,0.0033]
[1772748982063,0.46523396,2079.4,2079.1,0.0011]
[1772748982843,1.66756166,2079.3,2079.1,0.0011]
[1772748983039,1.66756166,2079.3,2079.1,0.0033]
[1772748986159,1.66856166,2079.3,2079.1,0.0033]
[1772748990215,1.66856166,2079.3,2078.7,0.0011]
[1772748990216,0.46470741,2079.2,2078.7,0.0011]
[1772748990385,0.46470741,2079.1,2078.7,0.0011]
[1772748991267,1.2033277,2079.3,2078.7,0.0011]
[1772748991268,1.66720861,2079.0,2078.7,0.0011]
[1772748991765,0.46470741,2079.0,2078.7,0.0011]
[1772748997472,1.66720861,2079.0,2078.9,0.0011]
[1772748997672,0.46470741,2078.9,2078.7,0.0011]
[1772749008008,4.81032446,2079.3,2078.8,0.44582516]
[1772749008009,1.66806554,2079.3,2078.8,0.44582516]
[1772749008212,2.84299241,2079.2,2078.8,0.44582516]
[1772749008584,3.30769982,2079.2,2078.8,0.44582516]
[1772749008805,0.46470741,2079.2,2078.8,0.44582516]
[1772749009004,0.46470741,2079.2,2078.9,0.0011]
[1772749009309,2.84388225,2079.1,2078.9,0.0011]
[1772749011200,2.84388225,2079.1,2078.9,0.44692516]
[1772749011408,1.66803707,2079.3,2078.9,0.44692516]
[1772749011811,2.84534803,2079.2,2078.9,0.44692516]
[1772749013097,4.51246,2079.2,2078.9,0.44692516]
[1772749013302,1.66711197,2079.2,2078.9,0.44692516]
[1772749014020,2.845838,2079.1,2078.9,0.44692516]
[1772749021289,0.001,2079.0,2078.9,1.6494842]
[1772749021490,0.001,2079.3,2079.0,0.44482516]
[1772749022727,0.001,2079.3,2079.2,0.44482516]
[1772749023417,0.001,2079.3,2079.1,1.64726852]
[1772749024124,0.001,2079.3,2079.1,1.20244336]
[1772749024300,0.001,2079.3,2079.1,1.64726852]
[1772749024628,0.001,2079.3,2079.2,0.44482516]
[1772749027201,0.001,2079.3,2079.2,1.64721069]
[1772749034644,0.001,2079.7,2079.3,0.44382516]
[1772749034939,0.001,2079.7,2079.4,0.44382516]
[1772749035951,0.4905506,2079.7,2079.4,0.44382516]
[1772749036721,0.001,2079.7,2079.5,1.20221207]
[1772749037051,0.001,2079.7,2079.5,1.64603723]
[1772749041347,0.4905506,2079.7,2079.5,1.20221207]
[1772749043342,0.4905506,2079.7,2079.3,1.382]
[1772749043660,0.4895506,2079.6,2079.3,2.58428424]
[1772749045156,0.001,2079.7,2079.4,0.44382516]
[1772749045451,0.001,2079.7,2079.5,1.64713723]
[1772749046024,0.001,2080.4,2080.1,0.44282516]
[1772749046261,0.001,2080.4,2080.2,0.30129233]
[1772749047432,0.001,2080.4,2080.3,1.50304207]
[1772749058074,0.001,2080.4,2080.3,1.50414207]
[1772749061063,0.49380238,2080.6,2080.3,1.50414207]
[1772749061273,1.34095571,2080.5,2080.3,1.50414207]
[1772749061675,1.83475809,2080.5,2080.3,1.20284974]
[1772749063060,0.001,2080.4,2080.3,1.20284974]
[1772749064070,0.001,2080.7,2080.3,1.20284974]
[1772749064270,0.49380238,2080.6,2080.4,1.391]
[1772749065379,0.49480238,2080.7,2080.4,3.08602164]
[1772749065960,0.001,2080.7,2080.5,0.4933866]
[1772749067173,0.001,2080.7,2080.6,1.69496306]
[1772749067376,0.001,2080.9,2080.7,0.4933866]
[1772749068663,0.001,2080.9,2080.8,1.395]
[1772749070477,0.001,2080.9,2080.8,2.59646097]
[1772749070671,0.001,2080.9,2080.8,1.395]
[1772749071279,0.001,2080.9,2080.8,2.59646097]
[1772749072813,0.001,2080.9,2080.8,1.395]
[1772749072977,0.49480238,2080.9,2080.8,1.395]
[1772749073186,0.49480238,2080.9,2080.8,2.59646097]
[1772749075652,0.49480238,2080.9,2080.8,1.395]
[1772749077191,0.49480238,2080.9,2080.3,1.20281254]
[1772749077192,0.49380238,2080.8,2080.3,1.20281254]
[1772749078188,0.49380238,2080.8,2080.3,1.69619914]
[1772749082502,0.49380238,2080.8,2080.5,0.0011]
[1772749082670,0.47225682,2080.7,2080.5,0.0011]
[1772749083494,0.47125682,2080.6,2080.5,0.0011]
[1772749084199,0.47225682,2080.9,2080.5,0.45193368]
[1772749085067,4.26193543,2081.8,2080.8,2.60717356]
[1772749085308,0.47125682,2081.7,2080.9,1.405]
[1772749085475,0.47125682,2081.7,2081.0,0.45083368]
[1772749086991,4.27247464,2083.1,2082.1,1.22060694]
[1772749087192,0.47125682,2083.3,2082.3,0.45083368]
[1772749087371,0.47125682,2083.2,2082.4,1.393]
[1772749087572,0.47125682,2083.0,2082.4,1.393]
[1772749087772,1.01606987,2083.1,2081.9,0.45083368]
[1772749087773,0.47125682,2082.8,2081.9,0.45083368]
[1772749087996,0.47125682,2082.6,2082.0,1.394]
[1772749088297,0.47125682,2082.4,2082.0,1.394]
[1772749088496,1.55992582,2082.4,2082.0,1.394]
[1772749088795,0.47125682,2082.4,2082.0,1.396]
[1772749089103,0.47125682,2082.4,2082.0,2.59672795]
[1772749090481,0.47125682,2082.6,2082.0,2.59672795]
[1772749090681,0.47125682,2082.6,2082.1,0.14973291]
[1772749094603,0.47225682,2082.4,2082.1,0.14973291]
[1772749097109,0.38591556,2082.3,2081.7,1.65177521]
[1772749097417,0.38591556,2082.3,2081.7,3.05777521]
[1772749097811,0.38591556,2082.3,2081.7,1.20094153]
[1772749100931,0.38591556,2082.2,2081.7,1.65177521]
[1772749106131,0.38591556,2082.1,2081.7,0.45083368]
[1772749106308,0.38591556,2082.1,2081.9,0.0011]
[1772749106509,0.38691556,2082.1,2081.9,0.0011]
[1772749113947,0.001,2082.1,2081.9,0.45403154]
[1772749115220,0.001,2082.1,2081.9,1.65482386]
[1772749120743,0.38591556,2082.6,2082.2,0.45293154]
[1772749121050,0.38591556,2082.8,2082.2,0.45293154]
[1772749121838,0.38591556,2082.8,2082.4,0.45293154]
[1772749122947,0.38591556,2082.7,2082.1,1.4171]
[1772749123151,0.38591556,2082.7,2082.1,0.0011]
[1772749123320,0.38591556,2082.6,2081.9,2.6179092]
[1772749123722,0.38591556,2082.6,2081.9,3.07084074]
[1772749125453,0.38481556,2082.4,2081.9,3.07084074]
[1772749126957,0.38481556,2082.4,2081.9,0.45403154]
[1772749127258,0.38481556,2082.4,2081.9,1.65485257]
[1772749129864,0.38481556,2082.3,2081.9,0.45403154]
[1772749130233,0.38481556,2082.3,2081.9,1.65484056]
[1772749130667,0.38481556,2082.3,2082.0,0.45293154]
[1772749132168,0.38481556,2082.3,2081.6,2.30231584]
[1772749132349,0.18481556,2082.5,2081.7,0.45293154]
[1772749132547,0.18481556,2082.5,2082.1,0.0011]
[1772749132886,4.80149705,2082.7,2082.1,0.0011]
[1772749132887,0.18581556,2082.2,2082.1,0.0011]
[1772749134676,1.38646871,2082.2,2082.1,0.0011]
[1772749134840,0.18481556,2082.6,2082.2,0.45293154]
[1772749136161,0.18481556,2082.6,2082.2,1.65355573]
[1772749136562,1.38523814,2082.6,2082.2,1.65355573]
[1772749137549,0.18481556,2082.6,2082.2,1.65355573]
[1772749139159,1.38523961,2082.6,2082.2,1.65355573]
[1772749139343,0.18481556,2082.6,2082.2,1.65355573]
[1772749140169,1.3852562,2082.6,2082.2,0.45293154]
[1772749140353,0.18481556,2082.5,2082.1,1.66115885]
[1772749140868,0.18481556,2082.5,2082.1,1.661169]
[1772749141069,0.18481556,2082.5,2082.1,0.0011]
[1772749142350,1.20053784,2082.4,2082.1,0.0011]
[1772749142550,0.18481556,2082.3,2082.1,0.0011]
[1772749143346,0.18481556,2082.3,2081.6,0.0011]
[1772749143577,0.18481556,2082.3,2081.6,1.20209771]
[1772749143876,0.18481556,2082.3,2081.6,1.66146299]
[1772749145189,0.18371556,2082.1,2081.6,1.66146299]
[1772749146178,0.18371556,2082.1,2081.8,0.0011]
[1772749148658,1.38448405,2082.0,2081.8,0.0011]
[1772749149859,0.18371556,2082.0,2081.8,0.0011]
[1772749153890,1.38449183,2082.0,2081.8,0.0011]
[1772749154488,0.001,2082.2,2081.8,0.46046528]
[1772749158468,0.001,2082.2,2081.9,1.66019144]
[1772749158978,0.001,2082.1,2082.0,0.45936528]
[1772749161180,0.001,2082.1,2082.0,1.66013377]
[1772749162300,11.16170816,2082.6,2082.0,1.66013377]
[1772749162301,7.74418222,2082.6,2082.1,0.45936528]
[1772749163668,7.74418222,2082.6,2082.2,1.66001843]
[1772749163898,0.18371556,2082.6,2082.3,0.45936528]
[1772749164713,1.38414226,2082.6,2082.3,0.45936528]
[1772749166093,1.38414226,2082.6,2082.2,1.66001843]
[1772749168698,0.18371556,2082.6,2082.3,0.48085473]
[1772749168906,1.38414137,2082.6,2082.3,0.48085473]
[1772749170708,1.20042581,2082.6,2082.2,0.45612492]
[1772749170899,0.18471556,2082.5,2082.2,0.45612492]
[1772749171210,0.001,2082.4,2082.2,0.45612492]
[1772749177936,0.18471556,2082.2,2082.1,0.0011]
[1772749180911,0.18471556,2082.3,2082.1,0.0011]
[1772749183295,1.38534562,2082.3,2082.1,0.0011]
[1772749183494,0.001,2082.2,2082.1,0.0011]
[1772749184222,0.18913062,2082.2,2082.0,0.0011]
[1772749185805,1.38982915,2082.2,2082.0,0.0011]
[1772749186726,0.19625202,2082.1,2081.8,0.0011]
[1772749186895,0.19625202,2082.1,2081.6,0.0011]
[1772749187696,1.20076849,2082.0,2081.6,0.45722492]
[1772749187897,0.19890787,2081.9,2081.6,0.45722492]
[1772749188418,0.19890787,2081.9,2081.6,0.0011]
[1772749190528,1.4048534,2081.8,2081.5,0.0011]
[1772749190835,0.20640895,2081.7,2081.5,0.0011]
[1772749194229,1.40735373,2081.7,2081.5,0.0011]
[1772749194431,0.21346518,2081.6,2081.5,0.0011]
[1772749194634,1.41440996,2081.7,2081.4,0.22335147]
[1772749195007,0.21346518,2081.7,2081.4,0.67947639]
[1772749197136,0.21446518,2081.7,2081.4,0.67947639]
[1772749197334,0.21446518,2081.7,2081.5,0.0011]
[1772749197507,0.21446518,2081.7,2081.4,1.88058939]
[1772749198738,1.41540937,2081.7,2081.4,0.67947639]
[1772749199359,0.22429245,2081.5,2081.4,0.22335147]
[1772749199508,0.22429245,2081.5,2081.3,0.0011]
[1772749201024,1.20105385,2081.6,2081.3,0.0011]
[1772749201222,1.20105385,2081.6,2081.3,0.49642938]
[1772749201429,1.44016682,2081.4,2081.2,0.0011]
[1772749201639,1.44016682,2081.4,2081.0,0.49532938]
[1772749201847,0.24091558,2081.3,2081.0,0.49532938]
[1772749202139,0.24091558,2081.3,2080.9,0.49532938]
[1772749202733,0.24091558,2081.3,2080.8,0.49532938]
[1772749203442,1.44403088,2081.2,2080.8,0.49532938]
[1772749203944,1.44403088,2081.2,2080.8,1.69678812]
[1772749204146,1.44403088,2081.2,2080.8,0.49532938]
[1772749204345,0.24457985,2081.1,2080.8,0.49532938]
[1772749205640,1.44588516,2081.1,2080.8,0.49532938]
[1772749205829,0.24801451,2081.0,2080.7,0.49642938]
[1772749206031,0.24801451,2081.0,2080.7,0.0011]
[1772749206244,0.24801451,2081.0,2080.7,0.49642938]
[1772749207847,1.4493902,2081.0,2080.7,0.49642938]
[1772749209239,1.4493902,2081.0,2080.9,0.0011]
[1772749209444,1.4493902,2081.0,2080.7,0.49642938]
[1772749209620,1.4503902,2081.0,2080.7,0.49642938]
[1772749210049,0.25440476,2080.9,2080.5,0.0011]
[1772749210349,0.5348446,2080.5,2079.8,1.20312845]
[1772749210652,0.5348446,2080.5,2079.9,0.00153281]
[1772749211346,0.5348446,2080.5,2079.8,0.0011]
[1772749212146,0.5348446,2080.3,2079.8,0.05929828]
[1772749212520,0.5348446,2080.3,2079.8,0.0011]
[1772749212719,0.5348446,2080.3,2079.8,0.06058452]
[1772749214051,0.5348446,2080.1,2079.8,0.06058452]
[1772749214248,1.73663111,2080.3,2079.9,0.0607665]
[1772749214465,0.5348446,2080.7,2079.9,0.0607665]
[1772749216149,0.5348446,2080.5,2080.0,0.0631588]
[1772749218628,1.73653658,2080.4,2080.0,1.26507101]
[1772749219286,1.73653658,2080.4,2080.0,0.0631588]
[1772749221883,1.73653658,2080.4,2080.2,0.0011]
[1772749223557,0.5348446,2080.6,2080.2,0.07155308]
[1772749223959,0.5348446,2080.6,2080.2,0.0011]
[1772749224365,0.5348446,2080.6,2080.0,0.0011]
[1772749224366,0.5348446,2080.5,2080.0,0.0011]
[1772749225498,0.5348446,2080.3,2080.0,0.0011]
[1772749228070,1.20180751,2080.2,2080.0,0.0011]
[1772749229093,1.75021014,2080.2,2080.0,0.0011]
[1772749231590,0.54840263,2080.2,2080.0,0.0011]
[1772749232804,1.75021108,2080.2,2080.0,0.0011]
[1772749234763,1.75121108,2080.2,2080.0,0.0011]
[1772749239871,0.54940263,2080.2,2080.0,0.0011]
[1772749240076,0.001,2080.2,2080.0,0.08837496]
[1772749249607,0.001,2080.2,2080.0,0.0011]
[1772749249810,0.5342946,2080.1,2079.8,0.0011]
[1772749249980,1.20192307,2080.0,2079.8,0.0011]
[1772749251294,2.27820309,2080.2,2079.8,0.09225097]
[1772749251487,1.73713514,2080.2,2079.8,0.09225097]
[1772749252712,7.08427156,2080.3,2079.8,0.09225097]
[1772749252713,3.47881736,2080.6,2079.9,0.09136066]
[1772749252879,1.20161427,2080.6,2079.9,0.09136066]
[1772749253080,1.73590887,2080.6,2079.9,0.09136066]
[1772749254107,1.73590887,2080.6,2080.0,1.20192307]
[1772749254305,1.73590887,2080.6,2080.1,0.09146344]
[1772749255600,0.5342946,2080.6,2080.1,0.09146344]
[1772749256110,1.73587993,2080.6,2080.1,0.09146344]
[1772749256919,1.73587993,2080.6,2080.2,1.20180751]
[1772749257126,1.73587993,2080.6,2080.3,0.09156232]
[1772749257810,1.73587993,2080.6,2080.0,4.8075015]
[1772749257811,0.5342946,2080.5,2080.0,0.09155565]
[1772749258116,0.5342946,2080.5,2079.8,0.0011]
[1772749258283,0.001,2080.4,2079.8,0.09375565]
[1772749258489,0.5337446,2080.3,2079.8,0.09375565]
[1772749258689,0.5337446,2080.3,2080.0,0.0011]
[1772749258917,1.73555211,2080.2,2080.0,0.0011]
[1772749260115,1.77271738,2080.2,2080.0,0.0011]
[1772749260628,0.57090987,2080.1,2080.0,0.0011]
[1772749261115,1.77277516,2080.1,2080.0,0.0011]
[1772749261319,0.57090987,2080.0,2079.8,0.0011]
[1772749262991,1.77283713,2080.0,2079.8,0.0011]
[1772749279140,0.57090987,2080.1,2079.8,0.0011]
[1772749280046,0.57090987,2080.1,2079.8,0.09086642]
[1772749281342,1.77282296,2080.1,2079.8,0.09086642]
[1772749282013,1.77282296,2080.1,2080.0,0.0011]
[1772749282740,0.57090987,2080.0,2079.8,0.0011]
[1772749283345,1.77283974,2080.0,2079.8,0.0011]
[1772749289462,4.80736087,2080.2,2079.8,0.08820953]
[1772749289463,1.20191166,2080.1,2079.8,0.08820953]
[1772749289820,2.29737675,2080.3,2079.8,0.08820953]
[1772749290146,1.20175329,2080.3,2079.9,1.20198086]
[1772749290343,1.20175329,2080.3,2080.0,0.08800155]
[1772749291561,4.04102784,2080.4,2080.0,0.08800155]
[1772749291764,0.001,2080.4,2080.0,0.08800155]
[1772749292349,0.001,2080.4,2080.2,0.08684888]
[1772749295124,0.001,2080.4,2080.2,1.28865353]
[1772749295325,0.001,2080.4,2080.2,0.08684888]
[1772749296424,0.001,2080.4,2080.1,1.28622865]
[1772749296623,0.001,2080.4,2080.2,0.08440941]
[1772749299541,0.54191183,2080.4,2080.0,1.28546866]
[1772749299749,0.54191183,2080.4,2080.1,0.08179994]
[1772749301454,0.001,2080.4,2080.1,0.08179994]
[1772749301658,0.001,2080.4,2080.2,1.20180751]
[1772749303031,0.001,2080.4,2080.2,0.07973744]
[1772749303864,0.001,2080.4,2080.2,1.28154464]
[1772749304941,0.001,2080.4,2080.2,0.07973744]
[1772749305865,0.001,2080.4,2080.2,1.28153924]
[1772749306234,0.001,2080.4,2080.2,1.28263924]
[1772749309061,0.001,2080.4,2080.2,1.2029018]
[1772749309250,0.54091183,2080.7,2080.2,1.2029018]
[1772749309251,0.54091183,2080.7,2080.3,0.07435918]
[1772749309562,0.54091183,2080.7,2080.2,0.0011]
[1772749310251,0.54091183,2080.5,2080.2,0.0011]
[1772749312862,0.54091183,2080.3,2080.2,0.0011]
[1772749319890,1.73692544,2080.5,2080.2,0.06767431]
[1772749321354,1.20268084,2080.5,2080.2,0.06767431]
[1772749322979,1.73692544,2080.5,2080.2,0.06767431]
[1772749324648,0.5342446,2080.4,2080.2,0.0011]
[1772749330584,0.001,2080.3,2080.2,0.0011]
[1772749335394,0.001,2080.3,2080.2,0.05410959]
[1772749335627,0.001,2080.3,2080.2,0.0011]
[1772749347514,1.68901796,2080.4,2080.2,0.0011]
[1772749350314,0.001,2080.5,2080.2,0.04210145]
[1772749353203,0.001,2080.5,2080.3,0.03786396]
[1772749353590,0.001,2080.5,2080.4,0.0011]
[1772749358923,0.001,2080.5,2080.2,0.0011]
[1772749358924,0.5336946,2080.4,2080.2,0.0011]
[1772749360922,0.001,2080.5,2080.2,0.03157359]
[1772749361217,0.001,2080.5,2080.3,0.03047359]
[1772749363801,0.001,2080.5,2080.4,0.02722458]
[1772749371345,0.001,2080.5,2080.3,0.0011]